Cogmind - Beta 13 @@@ ROGUE MODE // 2024.05.11 @ 13:40:39 Player: CrossedViper Result: Destroyed by P-60 Hacker with Shock Rifle Performance ------------- Evolutions (4) 2000 Regions Visited (15) 3000 Robots Destroyed (263) 1315 Value Destroyed (11164) 11164 Prototype IDs (19) 380 Alien Tech Used (0) 0 Bonus (5432) 5432 TOTAL SCORE: 23291 Bonus ------- High Alert Combat Kills 1757 Follower Combat Kills 762 Entered Garrisons 1000 Used RIF Installer 3000 Friendly Fire -1087 Cogmind --------- Core Integrity 0/850 Matter 214/300 Energy 100/100 System Corruption 48% Temperature Cool (0) Movement Core (50) Location -6/Factory Parts ------- > --- POWER (1) -------- (None) > --- PROPULSION (4) --- (None) > --- UTILITY (8) ------ Enhanced Optical Array Relay Coupler [NC] (32) Relay Coupler [Swarmer] (18) Relay Coupler [Duelist] (31) Relay Coupler [Hunter] (18) > --- WEAPON (2) ------- (None) > --- INVENTORY (5) ---- Heavy Servo Lattice Relay Coupler [Proto] Powered Cannon Heavy Missile Launcher Peak State ------------ > --- POWER ------------ Light Nuclear Core > --- PROPULSION ------- Improved Heavy Treads Improved Heavy Treads > --- UTILITY ---------- Huge Storage Unit Advanced Thermal Shield Hacking Suite Relay Coupler [NC] Relay Coupler [Grunt] Relay Coupler [Sentry] Relay Coupler [Hunter] Relay Coupler [Behemoth] > --- WEAPON ----------- Matter Neutralizer Remote Datajack > --- INVENTORY -------- Deuterium Engine Improved Heavy Treads Transport Network Coupler Heavy Servo Lattice Improved Weapon Cycler Improved Utility Shielding Improved Medium Armor Plating Relay Coupler [NC] Relay Coupler [NC] Relay Coupler [NC] Relay Coupler [Sentry] Relay Coupler [Hunter] Long-range Tractor Beam HERF Cannon HERF Cannon Powered Cannon Subdweller Shrapnel Launcher Heavy Missile Launcher Heavy Missile Launcher Impact Mace [Rating: 81] Favorites ----------- Power Ion Engine Engine Ion Engine Power Core Light Nuclear Core Reactor Light Quantum Reactor Propulsion Light Treads Treads Light Treads Leg Carbon-fiber Leg Wheel Armored Wheel Utility Relay Coupler [NC] Device Advanced Cooling System Storage High-capacity Storage Unit Processor Advanced Targeting Computer Hackware Relay Coupler [NC] Protection Scrap Shield Weapon Subdweller Beam Cannon Energy Gun Subdweller Laser Energy Cannon Subdweller Beam Cannon Ballistic Gun Heavy Battle Rifle Ballistic Cannon Slug Cannon Launcher Subdweller Shrapnel Launcher Special Weapon Remote Datajack Impact Weapon Impact Mace Slashing Weapon Makeshift Sword Build | -11 -10 -10 -10 -8 -8 -8 -8 -8 -7 -7 -7 -7 -6 -6 -6 ------- Run | Yrd Mat Min Sub Mat Gar Mat Gar Mat Fac Gar Fac Gar Fac Gar Fac Slots Evolved 8 | . . . . 4 . . . . 2 . . . 2 . . Power . | . . . . . . . . . . . . . . . . Propulsion 2 | . . . . 1 . . . . 1 . . . . . . Utility 6 | . . . . 3 . . . . 1 . . . 2 . . Weapon . | . . . . . . . . . . . . . . . . Parts Attached 296 | 8 2 4 23 38 29 5 24 3 46 31 7 16 2 38 20 Power 21 | 1 . 1 1 2 2 1 2 . 2 2 . 1 . 4 2 Engine 14 | 1 . 1 1 1 1 1 . . 2 2 . . . 3 1 Core 6 | . . . . 1 1 . 2 . . . . 1 . . 1 Reactor 1 | . . . . . . . . . . . . . . 1 . Propulsion 56 | 2 . . 3 11 9 2 8 . 5 7 . . . 5 4 Treads 37 | 2 . . 1 3 5 2 5 . 4 7 . . . 5 3 Leg 9 | . . . . 7 2 . . . . . . . . . . Wheel 10 | . . . 2 1 2 . 3 . 1 . . . . . 1 Hover . | . . . . . . . . . . . . . . . . Flight . | . . . . . . . . . . . . . . . . Utility 101 | 2 . 1 4 14 10 . 7 1 18 12 5 7 2 13 5 Device 33 | 1 . . . 4 4 . 3 . 10 6 2 2 . 1 . Storage 6 | 1 . . 1 1 1 . . . . 2 . . . . . Processor 7 | . . . . 2 1 . . 1 1 . . . . . 2 Hackware 29 | . . . . 1 1 . 1 . 2 4 2 5 2 9 2 Protection 26 | . . 1 3 6 3 . 3 . 5 . 1 . . 3 1 Artifact . | . . . . . . . . . . . . . . . . Weapon 118 | 3 2 2 15 11 8 2 7 2 21 10 2 8 . 16 9 Energy Gun 14 | 2 . . 5 5 1 1 . . . . . . . . . Energy Cannon 31 | . . . 3 3 . . 3 . 11 5 1 2 . 2 1 Ballistic Gun 16 | 1 1 . 2 1 3 . 2 1 2 1 . . . 2 . Ballistic Cannon 4 | . . . 4 . . . . . . . . . . . . Launcher 22 | . 1 1 1 . 3 1 2 1 4 . . 1 . 4 3 Special Weapon 18 | . . . . . . . . . 2 3 1 3 . 4 5 Impact Weapon 8 | . . . . . . . . . 1 1 . 2 . 4 . Slashing Weapon 5 | . . 1 . 2 1 . . . 1 . . . . . . Piercing Weapon . | . . . . . . . . . . . . . . . . Special Melee Weapon . | . . . . . . . . . . . . . . . . Unidentified Prototypes 6 | . . . . 3 . . . . 2 1 . . . . . Corrupted Parts 4 | . . . . . . . . . . . . . . 3 1 System Corruption 21 | . . . . . . . . . . . . . . 16 5 Parts Lost 52 | . . . 2 2 6 . 4 . 3 5 . 3 . 14 13 Power 6 | . . . . 1 . . 1 . . . . . . 2 2 Propulsion 17 | . . . 1 1 4 . . . 1 4 . . . 2 4 Utility 19 | . . . . . 1 . 3 . 1 1 . 2 . 7 4 Weapon 10 | . . . 1 . 1 . . . 1 . . 1 . 3 3 Highest Loss Streak 8 | . . . 2 1 5 . 2 . 2 3 . 3 . 8 6 To Critical Strikes . | . . . . . . . . . . . . . . . . Average Slot Usage (%) 87 | . 100 99 85 93 89 90 89 100 91 85 83 80 85 80 85 Engine 7 | . 14 13 14 4 2 4 1 . 6 7 7 2 . 3 5 Core 2 | . . . . 4 6 4 7 9 . . . 4 6 . . Treads 19 | . 28 28 23 5 13 23 24 27 21 19 15 15 13 13 20 Leg 1 | . . . . 18 4 . . . . . . . . . . Wheel 2 | . . . 4 2 7 3 2 . 3 1 . . . . . Device 4 | . 14 5 . 3 4 . 2 18 12 7 4 2 6 3 . Storage 6 | . 14 14 2 9 9 9 9 9 7 7 7 7 6 6 5 Processor 4 | . . . . 10 11 9 9 9 9 4 . . . . 4 Hackware 11 | . . . . 7 8 9 9 9 9 21 30 30 38 26 36 Protection 6 | . . 8 12 10 3 9 6 . 2 . 2 1 . 9 . Energy Gun 4 | . 14 13 8 2 7 9 . . . . . . . . . Energy Cannon 5 | . . . 8 5 1 . 6 2 5 6 13 8 6 2 . Ballistic Gun 3 | . 13 3 . 2 4 9 10 15 3 6 . . . 4 . Ballistic Cannon 2 | . . . 10 . . . . . . . . . . . . Launcher 1 | . . 10 . . 2 . . . . . . . . . 3 Naked Turns . | . . . . . . . . . . . . . . . . Heaviest Build 123 | 15 15 16 39 51 70 72 77 61 84 111 116 116 101 123 104 Greatest Support 150 | 40 40 40 42 60 60 60 67 67 87 150 150 150 150 150 88 Greatest Overweight (x) 13 | . . . 1 1 13 2 6 . 2 2 . . . 1 2 Average Overweight (x) . | . . . . . 1 1 1 . 1 . . . . . 1 Largest Inventory Capacity 25 | 8 8 8 8 15 20 20 20 20 20 25 25 25 25 25 25 Average Capacity 15 | 7 8 8 5 13 17 20 20 20 20 21 25 25 25 25 24 Most Carried 25 | 4 8 8 8 15 20 20 20 20 20 25 25 25 24 25 25 Average Carried 14 | 2 6 7 5 11 16 19 19 19 19 19 24 23 22 22 23 Final Capacity 25 | 8 8 8 8 15 20 20 20 20 20 25 25 25 25 25 5 Final Carried 25 | 4 8 8 8 14 20 19 19 20 20 25 25 24 22 24 5 Class Distribution -------------------- 30% | Mutant 26% | Scavenger-Mutant 17% | Botlord-Mutant 12% | Bothacker-Mutant 11% | Subdweller-Mutant Dominant Class ---------------- Mutant | -10/Materials Mutant | -10/Mines Mutant | -10/Subcaves Scavenger-Mutant | -8/Materials Scavenger-Mutant | -8/Garrison Scavenger-Mutant | -8/Materials Scavenger-Mutant | -8/Garrison Bothacker-Mutant | -8/Materials Mutant | -7/Factory Bothacker-Mutant | -7/Garrison Bothacker-Mutant | -7/Factory Botlord-Mutant | -7/Garrison Botlord-Mutant | -6/Factory Botlord-Mutant | -6/Garrison Botlord-Mutant | -6/Factory Resources | -11 -10 -10 -10 -8 -8 -8 -8 -8 -7 -7 -7 -7 -6 -6 -6 ----------- Run | Yrd Mat Min Sub Mat Gar Mat Gar Mat Fac Gar Fac Gar Fac Gar Fac Matter Collected 8910 | 298 . 100 516 991 1485 180 924 10 1744 935 123 456 15 683 450 Remotely . | . . . . . . . . . . . . . . . . Salvage Created 11167 | 103 102 219 1187 1050 1092 181 728 193 3231 1194 140 400 . 818 529 Parts 542 | 3 13 8 82 50 49 12 46 16 136 47 3 19 . 26 32 Haulers Intercepted 10 | . 1 . . 5 . . . . 4 . . . . . . Recyclers Shooed 13 | . . 1 . 2 . . . . 7 . . . . . 3 Parts Field Recycled . | . . . . . . . . . . . . . . . . Retrieved Matter . | . . . . . . . . . . . . . . . . Parts Self-Destructed 30 | . . . 30 . . . . . . . . . . . . Prevented . | . . . . . . . . . . . . . . . . Kills | -11 -10 -10 -10 -8 -8 -8 -8 -8 -7 -7 -7 -7 -6 -6 -6 ------- Run | Yrd Mat Min Sub Mat Gar Mat Gar Mat Fac Gar Fac Gar Fac Gar Fac Combat Hostiles Destroyed 195 | . 6 1 25 11 14 3 33 5 44 14 3 11 . 19 6 Melee 20 | . . . . 4 2 . . . 12 . . 1 . 1 . Guns 34 | . 3 . 6 2 4 3 9 . 2 3 . . . 2 . Cannons 53 | . . . 14 5 4 . 3 . 12 9 2 4 . . . AOE 71 | . 3 1 3 . 4 . 20 5 14 1 . 5 . 10 5 Classes Destroyed 24 | 2 3 2 5 4 . . 1 . 5 . . 1 . 1 . Worker 17 | . . . . 2 . . . 2 7 . . . . . 6 Builder 8 | . . 2 . . . . . . 2 . . . . . 4 Tunneler 1 | 1 . . . . . . . . . . . . . . . Hauler 10 | . 1 . . 5 . . . . 4 . . . . . . Recycler 23 | 1 . 2 . 2 . . . 1 15 . . . . . 2 Mechanic 2 | . . . . . . . . . 1 . . . . . 1 Operator 3 | . 1 . . 1 . . . 1 . . . . . . . Watcher 6 | . . . . 1 1 1 . . 2 . . . . . 1 Swarmer 45 | . 6 . 5 . 4 . 15 3 3 3 . 2 . 4 . Cutter 5 | . . . . . . . . . . . . 2 . 3 . Grunt 62 | . . 1 . 3 7 1 14 2 17 7 2 3 . 4 1 Brawler 5 | . . . . . . . . . 2 1 . . . 2 . Duelist 5 | . . . . 1 1 . . . 2 1 . . . . . Protector 1 | . . . . . . . . . 1 . . . . . . Sentry 22 | . . . 1 3 2 2 2 . 4 1 . 3 . 3 1 Demolisher 2 | . . . . . . . . . 2 . . . . . . Specialist 2 | . . . . . . . . . . . . . . 2 . Hunter 7 | . . . . 4 . . . . . . 1 1 . 1 . Programmer 15 | . . . . . . . 2 . 7 1 . . . 1 4 Artisan 3 | . . . 3 . . . . . . . . . . . . Cobbler 2 | . . . 2 . . . . . . . . . . . . Subdweller 19 | . . . 19 . . . . . . . . . . . . Zionite 1 | . . . 1 . . . . . . . . . . . . Assembled 7 | . . . . . . . . . 7 . . . . . . Butcher 1 | . . . . . 1 . . . . . . . . . . Guerrilla 1 | . . . . . . . . . . . . 1 . . . Best Kill Streak 18 | 2 4 2 3 3 3 3 18 8 9 4 2 7 . 6 4 Combat Bots Only 18 | . 3 1 3 2 3 2 18 5 8 4 2 7 . 6 3 Max Kills in Single Turn 8 | 1 2 1 3 1 2 1 4 8 3 1 1 2 . 3 2 Gunslinging . | . . . . . . . . . . . . . . . . Exploded 5 | . 2 1 3 . 2 . 4 5 3 1 . 2 . 3 2 Melee 1 | . . . . 1 1 . . . 1 . . 1 . 1 . Uniques/NPCs Destroyed . | . . . . . . . . . . . . . . . . Combat | -11 -10 -10 -10 -8 -8 -8 -8 -8 -7 -7 -7 -7 -6 -6 -6 -------- Run | Yrd Mat Min Sub Mat Gar Mat Gar Mat Fac Gar Fac Gar Fac Gar Fac Hostile Shots Fired 1417 | . 17 5 84 87 124 14 111 8 206 81 12 134 . 329 205 Missed 416 | . 5 2 26 20 31 6 27 2 54 18 2 39 . 115 69 Damage Taken 13891 | . 156 136 1023 947 1373 123 1184 81 2584 929 160 1057 . 2325 1813 Core 2122 | . 25 10 85 121 297 . 94 7 325 128 32 141 . 334 523 Absorbed by Shields . | . . . . . . . . . . . . . . . . Reduced by Siege Mode 44 | . . . . . . . . . . . 22 22 . . . Redirected to Shielding 30 | . . . . 11 . . . . 19 . . . . . . Ignored by Resistances 292 | . . . . 54 58 . . . . . . 38 . 142 . Regen/Repaired (Parts) 74 | . . . . . . . . . 74 . . . . . . Core Remaining (%) 41 | 100 . . 52 . . . . 5 . . . 10 . . . Volleys Fired 917 | 6 14 21 136 58 124 13 74 3 114 183 17 56 1 62 35 Largest 2 | 2 2 1 2 2 2 2 2 2 2 2 2 2 1 2 1 Hottest 260 | 70 70 50 160 143 135 88 123 123 170 115 195 195 5 260 260 Shots Fired 1252 | 12 21 21 217 98 152 25 109 5 174 224 24 64 1 72 33 Gun 577 | 12 19 17 95 40 131 24 67 3 22 120 . . . 27 . Cannon 523 | . . . 121 58 17 . 31 1 118 92 16 45 . 23 1 Launcher 82 | . 2 4 1 . 4 1 11 1 17 3 . 7 . 11 20 Special 70 | . . . . . . . . . 17 9 8 12 1 11 12 Kinetic 414 | 6 12 . 45 28 28 13 77 4 39 123 . 7 . 32 . Thermal 729 | 6 7 17 171 70 124 12 32 1 118 92 16 45 . 4 14 Explosive 15 | . 2 4 1 . . . . . . . . . . 2 6 Electromagnetic 24 | . . . . . . . . . . . . . . 23 1 Robot Hit Streak 57 | 2 4 7 22 9 57 16 14 1 17 27 16 9 3 9 6 Robot Miss Streak 6 | 3 2 4 4 4 4 1 4 1 3 2 3 3 . 6 1 Penetration Max . | . . . . . . . . . . . . . . . . Secondary Targets . | . . . . . . . . . . . . . . . . Shots Hit Robots 855 | 5 11 11 113 71 114 19 55 2 170 140 17 31 1 63 32 Core Hits 456 | 3 10 8 50 29 52 6 55 12 90 52 2 15 . 45 27 Critical Kills 10 | . . . 2 1 . . 1 . 2 3 1 . . . . Critical Parts Destroyed 8 | . . . . . . . . . 1 . . 2 . 1 4 Critical Strikes 33 | . . 3 2 3 3 . 1 . 10 3 1 2 . 1 4 Burn 7 | . . 3 . 1 3 . . . . . . . . . . Meltdown 7 | . . . 2 . . . 1 . 2 1 1 . . . . Destroy 4 | . . . . 1 . . . . 1 2 . . . . . Smash 7 | . . . . . . . . . . . . 2 . 1 4 Sever 8 | . . . . 1 . . . . 7 . . . . . . Melee Attacks 171 | . . 4 . 25 10 . . . 69 16 . 11 . 19 17 Impact 63 | . . . . . . . . . . 16 . 11 . 19 17 Slashing 108 | . . 4 . 25 10 . . . 69 . . . . . . Piercing . | . . . . . . . . . . . . . . . . Sneak Attacks 34 | . . 2 . 8 . . . . 19 . . 1 . 2 2 Combat Hostiles 3 | . . . . . . . . . 2 . . . . 1 . Follow-up Attacks 4 | . . . . 4 . . . . . . . . . . . Damage Inflicted 30134 | 82 364 332 2739 2233 2899 396 3214 522 7647 3276 312 1269 . 2503 2346 Guns 7449 | 82 148 113 1273 402 1824 396 758 33 345 1692 . . . 383 . Cannons 8244 | . . . 1344 937 272 . 491 . 2415 1276 312 601 . 566 30 Explosions 9234 | . 216 67 122 . 620 . 1965 484 2183 308 . 521 . 1042 1706 Melee 5160 | . . 142 . 894 183 . . . 2704 . . 147 . 512 578 Ramming 47 | . . 10 . . . . . 5 . . . . . . 32 Kinetic 11067 | 43 123 . 595 320 853 245 2723 356 2528 2000 . 521 . 760 . Thermal 11859 | 39 83 113 2022 1019 1863 151 491 161 2415 1276 312 601 . 396 917 Explosive 1405 | . 158 67 122 . . . . . . . . . . 269 789 Electromagnetic 596 | . . . . . . . . . . . . . . 566 30 Impact 1237 | . . . . . . . . . . . . 147 . 512 578 Slashing 3923 | . . 142 . 894 183 . . . 2704 . . . . . . Piercing . | . . . . . . . . . . . . . . . . Highest Corruption 48 | . . . . . . . 2 2 2 3 3 5 . 30 48 Average Corruption 11 | . . . . . . . 1 2 1 2 3 4 . 24 35 Corruption Purged 2 | . . . . . . . . . 2 . . . . . . Corruption Blocked . | . . . . . . . . . . . . . . . . Effects 278 | . . . . . . . 13 4 12 34 10 36 . 95 74 Message Errors 55 | . . . . . . . 3 1 3 6 . 8 . 18 16 Matter Fused 65 | . . . . . . . 5 . 3 7 4 5 . 28 13 Heat Flow Errors 32 | . . . . . . . . . 2 4 3 3 . 11 9 Energy Discharges 36 | . . . . . . . 1 1 2 5 1 4 . 14 8 Parts Rejected 3 | . . . . . . . . . . 2 . . . . 1 Parts Fused 4 | . . . . . . . 1 . . 1 . . . 1 1 Data Loss (minor) 35 | . . . . . . . 1 1 . 5 2 6 . 13 7 Data Loss (major) 15 | . . . . . . . . 1 1 1 . 4 . 5 3 Misfires 8 | . . . . . . . 1 . . 1 . 3 . 1 2 Alerts 7 | . . . . . . . 1 . 1 . . 2 . 1 2 Misdirections 9 | . . . . . . . . . . . . . . 1 8 Weapon Failures 9 | . . . . . . . . . . 2 . 1 . 2 4 Overload Shots . | . . . . . . . . . . . . . . . . Overflow Damage 1650 | . . 50 . 77 15 . 32 19 477 72 . 122 . 336 450 Projectiles 168 | . . . . 6 . . . . 81 61 . . . 20 . Explosions 359 | . . . . . 15 . 32 19 37 11 . . . 146 99 Melee 1123 | . . 50 . 71 . . . . 359 . . 122 . 170 351 Knockbacks 10 | . . . 5 1 . . . . . . . 1 . 1 2 Impact 4 | . . . . . . . . . . . . 1 . 1 2 Kinetic 6 | . . . 5 1 . . . . . . . . . . . Secondary . | . . . . . . . . . . . . . . . . Self-Inflicted Damage 942 | . 57 . 10 . 159 . 18 6 53 55 . 82 . 248 254 Shots 24 | . 1 . 1 . 3 . 2 1 2 1 . 2 . 5 6 Rammed 10 | . . 3 . . . . . 1 . . . . . . 6 Targets Rammed 11 | . . 3 . . . . . 1 . . . . . . 7 Kicked . | . . . . . . . . . . . . . . . . Crushed 1 | . . . . . . . . . . . . . . . 1 Highest Temperature 534 | 27 54 80 144 457 312 114 395 36 298 196 336 357 . 534 480 Average Temperature 103 | 14 25 30 29 149 109 37 113 20 77 91 138 103 . 121 122 Received Heat Transfer 3218 | . . 24 114 207 432 72 432 27 593 243 72 321 . 342 339 Effects 33 | . . . . 13 2 . 1 . . . . 4 . 8 5 Shutdowns 5 | . . . . 1 . . . . . . . 1 . 2 1 Energy Bleed 3 | . . . . 1 1 . . . . . . . . 1 . Interference 13 | . . . . 6 1 . 1 . . . . 3 . 2 . Matter Decay 1 | . . . . 1 . . . . . . . . . . . Short Circuit 1 | . . . . 1 . . . . . . . . . . . Damage (minor) 1 | . . . . . . . . . . . . . . 1 . Damage (major) 9 | . . . . 3 . . . . . . . . . 2 4 Siege Activations 5 | . . . . . . . . . . . 2 1 . 2 . Total Turns 203 | . . . . . . . . . . . 177 8 . 18 . Longest Duration 156 | . . . . . . . . . . . 156 8 . 14 . Robots Corrupted 5 | . . . . . . . . . . . . . . 4 1 Combat Hostiles 5 | . . . . . . . . . . . . . . 4 1 Parts Fried 21 | . . . . . . . . . . . . 2 . 14 5 Impact Corruptions 14 | . . . . . . . . . . . . 3 . 6 5 Robots Melted 10 | . . . 2 . 1 . 1 . 4 1 1 . . . . Combat Hostiles 9 | . . . 2 . . . 1 . 4 1 1 . . . . Parts Melted 24 | . . . 3 3 4 1 3 . 6 1 . 1 . . 2 Heat Transferred 16599 | 111 124 555 2548 1554 3643 296 629 100 2905 1332 333 629 . 640 1200 Parts Sabotaged 6 | . . . . . . . . . . . . . . . 6 Parts Stolen . | . . . . . . . . . . . . . . . . Parts Stripped . | . . . . . . . . . . . . . . . . Power Chain Reactions . | . . . . . . . . . . . . . . . . Alert | -11 -10 -10 -10 -8 -8 -8 -8 -8 -7 -7 -7 -7 -6 -6 -6 ------- Run | Yrd Mat Min Sub Mat Gar Mat Gar Mat Fac Gar Fac Gar Fac Gar Fac Peak Influence 1970 | 10 331 94 . 270 1222 707 1970 1187 1086 1584 915 848 462 997 547 Initial 960 | . 6 51 . . 61 595 459 960 539 760 831 155 445 218 512 Average 594 | 5 189 25 . 107 581 636 1185 1124 332 1202 646 568 447 596 406 Maximum Alert Level 5 | . 1 . . 1 4 3 5 4 3 4 3 3 2 3 2 Low Security (%) 23 | 100 55 100 . 89 7 . . . 39 . 1 11 . . . Level 1 19 | . 44 . . 10 24 . . . 29 . 24 14 8 33 60 Level 2 20 | . . . . . 41 86 5 . 23 . 11 40 91 25 39 Level 3 21 | . . . . . 18 13 49 24 7 31 63 32 . 40 . Level 4 12 | . . . . . 8 . 29 75 . 68 . . . . . Level 5 2 | . . . . . . . 16 . . . . . . . . High Security . | . . . . . . . . . . . . . . . . Max Security . | . . . . . . . . . . . . . . . . Squads Dispatched 26 | . . . . 1 . 1 . . 16 . 3 . 1 . 4 Investigation 3 | . . . . . . . . . 2 . 1 . . . . Extermination 11 | . . . . . . . . . 6 . 1 . 1 . 3 Reinforcement 6 | . . . . 1 . . . . 3 . 1 . . . 1 Assault 1 | . . . . . . . . . 1 . . . . . . Garrison 5 | . . . . . . 1 . . 4 . . . . . . Intercept . | . . . . . . . . . . . . . . . . Searches Triggered . | . . . . . . . . . . . . . . . . Construction Impeded . | . . . . . . . . . . . . . . . . Haulers Reinforced 1 | . . . . . . . . . 1 . . . . . . Active Scanning Responses . | . . . . . . . . . . . . . . . . Cargo Convoy Interrupts 1 | . . . . . . . . . . . . . . . 1 Stealth | -11 -10 -10 -10 -8 -8 -8 -8 -8 -7 -7 -7 -7 -6 -6 -6 --------- Run | Yrd Mat Min Sub Mat Gar Mat Gar Mat Fac Gar Fac Gar Fac Gar Fac Distress Signals 6 | . . . . 4 . 1 . . 1 . . . . . . Communications Jammed 208 | . . . . . . . 12 15 31 . . . . . 150 Distress Signals 208 | . . . . . . . 12 15 31 . . . . . 150 Times Spotted 325 | . 8 2 29 30 22 4 35 8 68 21 5 22 1 32 38 Peak Tracking Total 15 | . 3 2 6 4 5 2 9 5 7 3 2 6 1 6 15 Tactical Retreats 32 | . . . 4 14 3 . . . 5 4 . 1 . 1 . Traps | -11 -10 -10 -10 -8 -8 -8 -8 -8 -7 -7 -7 -7 -6 -6 -6 ------- Run | Yrd Mat Min Sub Mat Gar Mat Gar Mat Fac Gar Fac Gar Fac Gar Fac Traps Triggered 39 | . . 2 . . 7 . 12 . 2 6 . . 1 7 2 Indirectly . | . . . . . . . . . . . . . . . . Trap Hack Attempts . | . . . . . . . . . . . . . . . . Triggered . | . . . . . . . . . . . . . . . . Disarmed . | . . . . . . . . . . . . . . . . Reprogrammed . | . . . . . . . . . . . . . . . . Reused . | . . . . . . . . . . . . . . . . Traps Extracted . | . . . . . . . . . . . . . . . . Installed . | . . . . . . . . . . . . . . . . Triggered . | . . . . . . . . . . . . . . . . Most Traps Carried 2 | . . . . 1 1 . 1 . 2 . . . . . . Machines | -11 -10 -10 -10 -8 -8 -8 -8 -8 -7 -7 -7 -7 -6 -6 -6 ---------- Run | Yrd Mat Min Sub Mat Gar Mat Gar Mat Fac Gar Fac Gar Fac Gar Fac Machines Disabled 56 | . 8 . 1 1 1 . 3 2 20 4 1 7 . 4 4 Max in Single Turn 6 | . 6 . 1 1 1 . 1 2 6 1 1 1 . 1 1 Garrison Relay 14 | . . . . . 1 . 2 . . 3 . 4 . 4 . Phase Generator 1 | . . . . . . . . . . . . . . 1 . Machines Repaired . | . . . . . . . . . . . . . . . . Machines Dismantled . | . . . . . . . . . . . . . . . . Machines Sabotaged . | . . . . . . . . . . . . . . . . Overloaded Fab Kills . | . . . . . . . . . . . . . . . . Hacking | -11 -10 -10 -10 -8 -8 -8 -8 -8 -7 -7 -7 -7 -6 -6 -6 --------- Run | Yrd Mat Min Sub Mat Gar Mat Gar Mat Fac Gar Fac Gar Fac Gar Fac Machines Accessed 45 | . 3 1 2 4 2 2 3 . 11 2 3 1 4 4 3 Terminals 30 | . 3 . . 2 2 . 3 . 6 2 2 1 3 4 2 Fabricators 3 | . . . . . . . . . 2 . . . . . 1 Repair Stations 1 | . . . . . . . . . 1 . . . . . . Recycling Units 1 | . . . . . . . . . 1 . . . . . . Scanalyzers 2 | . . . . 1 . 1 . . . . . . . . . Garrison Access 5 | . . . . 1 . 1 . . 1 . 1 . 1 . . Total Hacks 91 | . 10 1 3 10 3 4 7 . 23 3 5 3 6 9 4 Successful 37 | . 4 1 3 6 2 4 3 . 7 1 2 . 3 1 . Failed 53 | . 5 . . 4 1 . 4 . 16 2 3 3 3 8 4 Catastrophic 15 | . . . . 1 . . 1 . 5 1 1 1 2 2 1 Database Lockouts 1 | . 1 . . . . . . . . . . . . . . Manual 33 | . 11 . . 6 . . . . 8 . 2 . 4 . 2 Terminals 66 | . 10 . . 7 3 . 7 . 13 3 4 3 5 9 2 Fabricators 8 | . . . . . . . . . 6 . . . . . 2 Repair Stations 2 | . . . . . . . . . 2 . . . . . . Recycling Units 1 | . . . . . . . . . 1 . . . . . . Scanalyzers 5 | . . . . 2 . 3 . . . . . . . . . Garrison Access 5 | . . . . 1 . 1 . . 1 . 1 . 1 . . Terminal Hacks 18 | . 2 1 3 2 2 . 3 . 1 1 1 . 1 1 . Record 2 | . . . 2 . . . . . . . . . . . . Robot Analysis 1 | . 1 . . . . . . . . . . . . . . Open Door 3 | . . 1 . . 1 . 1 . . . . . . . . Branch Access Points 2 | . . . . 1 . . . . . . 1 . . . . Emergency Access Points 3 | . . . . . 1 . 1 . . 1 . . . . . Unreport Threat 3 | . . . . 1 . . . . 1 . . . 1 . . Zone Layout 1 | . 1 . . . . . . . . . . . . . . Garrison Registry 1 | . . . . . . . . . . . . . . 1 . Security Stations 1 | . . . . . . . 1 . . . . . . . . Derelict Proto ID Bank 1 | . . . 1 . . . . . . . . . . . . Fabricator Hacks 1 | . . . . . . . . . 1 . . . . . . Load Schematic 1 | . . . . . . . . . 1 . . . . . . Repair Station Hacks 2 | . . . . . . . . . 2 . . . . . . Scan Component 1 | . . . . . . . . . 1 . . . . . . Repair 1 | . . . . . . . . . 1 . . . . . . Recycling Unit Hacks . | . . . . . . . . . . . . . . . . Scanalyzer 5 | . . . . 2 . 3 . . . . . . . . . Insert Component 2 | . . . . 1 . 1 . . . . . . . . . Analyze 3 | . . . . 1 . 2 . . . . . . . . . Garrison Access Hacks 5 | . . . . 1 . 1 . . 1 . 1 . 1 . . Unlock Access 5 | . . . . 1 . 1 . . 1 . 1 . 1 . . Unauthorized Hacks 6 | . 2 . . 1 . . . . 2 . . . 1 . . Terminals 4 | . 2 . . 1 . . . . . . . . 1 . . Assimilate 1 | . 1 . . . . . . . . . . . . . . Botnet 3 | . 1 . . 1 . . . . . . . . 1 . . Fabricators 2 | . . . . . . . . . 2 . . . . . . Liberate 1 | . . . . . . . . . 1 . . . . . . Haulers 1 | . . . . . . . . . 1 . . . . . . Repair Stations . | . . . . . . . . . . . . . . . . Recycling Units . | . . . . . . . . . . . . . . . . Scanalyzers . | . . . . . . . . . . . . . . . . Garrison Access . | . . . . . . . . . . . . . . . . Data Cores Recovered 3 | . . . . 1 . . . 1 . . . . 1 . . Used . | . . . . . . . . . . . . . . . . Hacking Detections 31 | . 3 . . 2 1 2 . . 8 1 3 1 3 4 3 Full Trace Events 4 | . . . . . . . . . 2 . 1 . . 1 . Feedback Events . | . . . . . . . . . . . . . . . . Feedback Blocked . | . . . . . . . . . . . . . . . . Robot Schematics Acquired . | . . . . . . . . . . . . . . . . Robots Built . | . . . . . . . . . . . . . . . . Authchips . | . . . . . . . . . . . . . . . . Time . | . . . . . . . . . . . . . . . . Total Robot Build Rating . | . . . . . . . . . . . . . . . . Part Schematics Acquired 2 | . . . . 1 . 1 . . . . . . . . . Parts Built . | . . . . . . . . . . . . . . . . Authchips . | . . . . . . . . . . . . . . . . Time . | . . . . . . . . . . . . . . . . Total Part Build Rating . | . . . . . . . . . . . . . . . . Parts Repaired 1 | . . . . . . . . . 1 . . . . . . Time 32 | . . . . . . . . . 32 . . . . . . Parts Recycled . | . . . . . . . . . . . . . . . . Recycled Matter . | . . . . . . . . . . . . . . . . Retrieved Matter . | . . . . . . . . . . . . . . . . Retrieved Components . | . . . . . . . . . . . . . . . . Parts Scanalyzed 2 | . . . . 1 . 1 . . . . . . . . . Part Schematics Acquired 2 | . . . . 1 . 1 . . . . . . . . . Parts Damaged . | . . . . . . . . . . . . . . . . Bothacking | -11 -10 -10 -10 -8 -8 -8 -8 -8 -7 -7 -7 -7 -6 -6 -6 ------------ Run | Yrd Mat Min Sub Mat Gar Mat Gar Mat Fac Gar Fac Gar Fac Gar Fac Used RIF Installer 6 | . . . . . . . 2 . . 1 . 2 . 1 . Signal Jammer 1 | . . . . . . . 1 . . . . . . . . Robot Detection 1 | . . . . . . . . . . 1 . . . . . Structural Interface 1 | . . . . . . . . . . . . 1 . . . Autooverride 2 | . . . . . . . . . . . . 1 . 1 . Robots Hacked 41 | . . . . . . . . . 5 4 2 12 1 7 10 Non-combat 10 | . . . . . . . . . 2 . 1 . 1 . 6 Combat 31 | . . . . . . . . . 3 4 1 12 . 7 4 Autooverrided 7 | . . . . . . . . . . . . 3 . 3 1 Robot Hacks Applied 53 | . . . . . . . . . 12 5 8 9 1 8 10 parse_system 8 | . . . . . . . . . 3 . 1 . 1 2 1 no_distress 1 | . . . . . . . . . 1 . . . . . . find_fabricator 1 | . . . . . . . . . . . . . . . 1 drop_inventory 3 | . . . . . . . . . 1 . . . . . 2 ignore_parts 4 | . . . . . . . . . . . . . . . 4 purge_threat 7 | . . . . . . . . . 2 . 5 . . . . reprogram_traps 1 | . . . . . . . . . 1 . . . . . . overload_power 2 | . . . . . . . . . . 2 . . . . . amplify_resonance 1 | . . . . . . . . . . 1 . . . . . overwrite_iff 14 | . . . . . . . . . 3 2 1 6 . 1 1 streamctrl_high 2 | . . . . . . . . . . . . 1 . 1 . formatsys_low 2 | . . . . . . . . . 1 . 1 . . . . formatsys_high 7 | . . . . . . . . . . . . 2 . 4 1 Relay Couplers Released 59 | . . . . . 5 . 8 . . 12 . 19 . 15 . Machine Destruction 59 | . . . . . 5 . 8 . . 12 . 19 . 15 . Attached 26 | . . . . . . . 1 . 2 4 2 5 1 9 2 Fabnet Peak Effective % . | . . . . . . . . . . . . . . . . Robots Rewired 5 | . . . . . 2 . 2 . . . . 1 . . . Allies Hacked . | . . . . . . . . . . . . . . . . Hacks Repelled . | . . . . . . . . . . . . . . . . Allies | -11 -10 -10 -10 -8 -8 -8 -8 -8 -7 -7 -7 -7 -6 -6 -6 -------- Run | Yrd Mat Min Sub Mat Gar Mat Gar Mat Fac Gar Fac Gar Fac Gar Fac Total Allies 39 | . 1 . . . 2 . 2 . 5 3 2 13 . 8 3 Largest Group 3 | . 1 . . . 2 1 2 . 2 2 2 2 1 3 1 Highest-Rated Group 111 | . 10 . . . 56 28 56 . 64 41 31 64 29 111 12 Highest-Rated Ally 85 | . 10 . . . 31 28 31 . 32 29 21 32 29 85 12 Total Orders . | . . . . . . . . . . . . . . . . Ally Attacks 163 | . . . . . 23 . 8 . 29 12 3 40 2 22 24 Total Damage 3436 | . . . . . 454 . 209 . 535 188 38 701 38 866 407 Kills 30 | . . . . . 8 . 3 . 4 1 . 7 1 3 3 Allies Corrupted . | . . . . . . . . . . . . . . . . Allies Melted . | . . . . . . . . . . . . . . . . Intel | -11 -10 -10 -10 -8 -8 -8 -8 -8 -7 -7 -7 -7 -6 -6 -6 ------- Run | Yrd Mat Min Sub Mat Gar Mat Gar Mat Fac Gar Fac Gar Fac Gar Fac Robot Analysis Total 1 | . 1 . . . . . . . . . . . . . . Derelict Logs Recovered 3 | . . . 3 . . . . . . . . . . . . Drone Launches . | . . . . . . . . . . . . . . . . Drone Recoveries . | . . . . . . . . . . . . . . . . Exploration | -11 -10 -10 -10 -8 -8 -8 -8 -8 -7 -7 -7 -7 -6 -6 -6 ------------- Run | Yrd Mat Min Sub Mat Gar Mat Gar Mat Fac Gar Fac Gar Fac Gar Fac Turns Passed 27972 | 133 444 1160 7446 1684 2454 301 2653 318 3597 2097 535 1471 266 2029 1384 Spaces Moved 12480 | 65 248 526 3901 719 849 130 1030 177 1638 871 185 732 164 752 493 Core 56 | 4 . . . . 2 . . . . . . . . . 50 Treads 9730 | 61 248 526 3795 171 270 82 765 177 743 616 185 732 164 752 443 Legs 583 | . . . . 421 162 . . . . . . . . . . Wheels 2111 | . . . 106 127 415 48 265 . 895 255 . . . . . Hover . | . . . . . . . . . . . . . . . . Flight . | . . . . . . . . . . . . . . . . Fastest Speed 50 | 50 160 160 120 110 120 120 120 163 130 130 160 160 160 160 50 Average Speed 171 | 153 160 160 167 143 168 195 197 163 146 175 160 160 160 218 231 Slowest Speed 700 | 160 160 160 225 195 700 240 240 163 250 240 160 160 160 240 320 Overloaded Moves . | . . . . . . . . . . . . . . . . Propulsion Burnouts . | . . . . . . . . . . . . . . . . Robots Hopped . | . . . . . . . . . . . . . . . . Cave-ins Triggered . | . . . . . . . . . . . . . . . . Exploration Rate (%) 47 | 4 46 77 93 41 70 15 85 22 45 79 8 70 7 81 17 Regions Visited 15 Branch Regions 2 Pre-discovered Areas 1 | . . . 1 . . . . . . . . . . . . Known Exits Taken 5 | . . . . 1 . 1 . . 1 . 1 . 1 . . Unknown Exits Taken 5 | 1 1 1 1 . . . . 1 . . . . . . . Scrap Searched 17 | . . . 17 . . . . . . . . . . . . Spaces Dug 135 | . 4 . 7 . 14 . 17 . 21 27 . 20 . 20 5 Terrain Destroyed 653 | . 41 15 21 19 43 15 73 25 183 50 5 27 . 59 77 Melee 12 | . . . . . . . . . 1 1 . 1 . 4 5 Projectile 98 | . . . 16 19 . . 3 2 14 32 5 7 . . . AOE 543 | . 41 15 5 . 43 15 70 23 168 17 . 19 . 55 72 Terrain Rammed . | . . . . . . . . . . . . . . . . Walls Destroyed . | . . . . . . . . . . . . . . . . Machines Disabled . | . . . . . . . . . . . . . . . . Actions | -11 -10 -10 -10 -8 -8 -8 -8 -8 -7 -7 -7 -7 -6 -6 -6 --------- Run | Yrd Mat Min Sub Mat Gar Mat Gar Mat Fac Gar Fac Gar Fac Gar Fac Total 17743 | 83 274 818 4580 1256 1717 153 1541 201 2657 1246 402 953 167 1030 665 Wait 3361 | . 5 255 459 377 596 2 354 17 723 61 188 129 . 111 84 Move 12467 | 64 247 525 3900 718 848 129 1028 176 1638 870 185 731 164 751 493 Hop . | . . . . . . . . . . . . . . . . Pick Up 168 | 5 5 3 16 12 21 1 16 1 28 26 2 5 . 22 5 Fast Attach 91 | 6 . . 12 22 11 1 5 . 7 9 2 1 . 10 5 Attach 109 | 1 . 1 4 12 14 2 9 . 21 11 1 5 2 16 10 Detach 16 | . . . 1 5 4 . . . 4 1 . . . . 1 Swap 96 | 1 2 3 7 4 4 2 10 3 18 11 4 10 . 12 5 Drop 193 | . 1 3 29 30 29 3 20 . 34 26 2 3 . 10 3 Fire 917 | 6 14 21 136 58 124 13 74 3 114 183 17 56 1 62 35 Melee 164 | . . 4 . 18 10 . . . 69 16 . 11 . 19 17 Ram 4 | . . . . . . . . . . . . . . . 4 Kick . | . . . . . . . . . . . . . . . . Crush 7 | . . 3 . . . . . 1 . . . . . . 3 Escape Stasis 104 | . . . . . 40 . 18 . . 32 . . . 14 . Rewire 30 | . . . . . 16 . 7 . 1 . 1 2 . 3 . Trap . | . . . . . . . . . . . . . . . . Miscellaneous 16 | . . . 16 . . . . . . . . . . . . Route ------- -11/Scrapyard -10/Materials (discovered 3 exits: [*Mat x2] / *Min) -10/Mines (discovered 4 exits: [*Mat x2] / [*Exi] / *Sub) -10/Subcaves (discovered 3 exits: *Mat x2 / [*Rec]) -8/Materials -8/Garrison (discovered 3 exits: *Mat x3) -8/Materials -8/Garrison (discovered 3 exits: [*Mat x3]) -8/Materials -7/Factory (discovered 3 exits: *Fac x2 / Gar) -7/Garrison (discovered 3 exits: *Fac x3) -7/Factory (discovered 5 exits: Sto x2 / *Low x2 / Gar) -7/Garrison (discovered 3 exits: *Fac x3) -6/Factory -6/Garrison (discovered 3 exits: *Fac x3) -6/Factory History --------- Turn | Location | Event 8 | -11/Scrapyard | Discovered new exit (range 16) 134 | -11/Scrapyard | Entered Materials 259 | -10/Materials | Central database locked down 306 | -10/Materials | Build established: Mutant 343 | -10/Materials | Discovered new exit (range 7) 386 | -10/Materials | Discovered new exit (range 16) 450 | -10/Materials | Discovered new exit (range 7) 578 | -10/Materials | Entered Mines 604 | -10/Mines | Met a Derelict bent on vengeance 824 | -10/Mines | Received a Rocket Launcher from a helpful Derelict 907 | -10/Mines | Discovered new exit (range 7) 970 | -10/Mines | Met a Derelict who couldn't figure out how to use a Trap Extractor 1249 | -10/Mines | Discovered new exit (range 13) 1340 | -10/Mines | A weapon hastily lodged in a ceiling crevice suddenly fell to the ground 1431 | -10/Mines | Deemed a non-threat by the Exiles lab entrance 1431 | -10/Mines | Discovered new exit (range 5) 1724 | -10/Mines | Discovered new exit (range 4) 1738 | -10/Mines | Entered Subcaves 1826 | -10/Subcaves | Discovered new exit (range 8) 1841 | -10/Subcaves | Disturbed a concealed Subdweller 1937 | -10/Subcaves | Discovered new exit (range 8) 2585 | -10/Subcaves | Shifting Twisted Machinery released Sub. Monowheel 2595 | -10/Subcaves | Shifting Twisted Machinery released Sub. Monowheel 2619 | -10/Subcaves | Disturbed a concealed Subdweller 2840 | -10/Subcaves | Disturbed a concealed Subdweller 2884 | -10/Subcaves | A swath of the cavern ceiling suddenly collapsed 2932 | -10/Subcaves | Build established: Subdweller-Mutant 3166 | -10/Subcaves | Learned location of Zion (-6) 3166 | -10/Subcaves | Met a Zionite searching for "candidates" 3579 | -10/Subcaves | Learned Materials terminal intel 3582 | -10/Subcaves | Learned Materials stockpile data 3594 | -10/Subcaves | Learned Materials stockpile data 3612 | -10/Subcaves | Visited 4L-MR0's lab 3844 | -10/Subcaves | Shifting Twisted Machinery released Battle Cannon 3846 | -10/Subcaves | Shifting Twisted Machinery released Shrapnel Trap 3965 | -10/Subcaves | Shifting Twisted Machinery released Sub. Monowheel 4038 | -10/Subcaves | Shifting Twisted Machinery released Sub. Power Source 5000 | -10/Subcaves | Build established: Mutant 5153 | -10/Subcaves | Disturbed a concealed Subdweller 5425 | -10/Subcaves | Visited Clippyterm 6789 | -10/Subcaves | Discovered new exit (range 10) 6940 | -10/Subcaves | Ambushed by angry Subdweller bent on revenge 7324 | -10/Subcaves | Build established: Subdweller-Mutant 8567 | -10/Subcaves | Build established: Mutant 8593 | -10/Subcaves | Found Powered Cannon 9184 | -10/Subcaves | Entered Materials 9184 | -8/Materials | Evolved 4 slots: Propulsion x1, Utility x3 9186 | -8/Materials | Loaded intel: 12 terminal locations 9710 | -8/Materials | Build established: Scavenger-Gladiator 10216 | -8/Materials | Build established: Scavenger-Mutant 10800 | -8/Materials | Identified exit to Garrison 10868 | -8/Materials | Entered Garrison 10954 | -8/Garrison | Triggered checkpoint 11021 | -8/Garrison | Core integrity fell below 50% 11063 | -8/Garrison | Lost 5 parts (4n1u) 11410 | -8/Garrison | Triggered checkpoint 11582 | -8/Garrison | Discovered new exit (range 12) 11738 | -8/Garrison | Garrison Relay disabled 12398 | -8/Garrison | Discovered new exit (range 12) 12496 | -8/Garrison | Triggered checkpoint 12536 | -8/Garrison | Discovered new exit (range 11) 12568 | -8/Garrison | Triggered checkpoint 12680 | -8/Garrison | Triggered checkpoint 13322 | -8/Garrison | Entered Materials 13322 | -8/Materials | Accompanied by 1 ally 13555 | -8/Materials | Garrison activated, responded to threat 13621 | -8/Materials | Identified exit to Garrison 13623 | -8/Materials | Entered Garrison 13717 | -8/Garrison | Triggered checkpoint 13741 | -8/Garrison | Triggered checkpoint 13743 | -8/Garrison | Triggered checkpoint 13750 | -8/Garrison | Core integrity fell below 20% 13789 | -8/Garrison | Destroyed 18 combat bots 13813 | -8/Garrison | Triggered checkpoint 14005 | -8/Garrison | Discovered new exit (range 10) 14047 | -8/Garrison | Triggered checkpoint 14075 | -8/Garrison | Triggered checkpoint 14775 | -8/Garrison | Installed Relay Interface Framework 15051 | -8/Garrison | Triggered checkpoint 15161 | -8/Garrison | Expanded RIF knowledge: Signal Jamming 15204 | -8/Garrison | Garrison Relay disabled 15343 | -8/Garrison | Discovered new exit (range 12) 15367 | -8/Garrison | Learned Materials security intel 15569 | -8/Garrison | Triggered checkpoint 15608 | -8/Garrison | Discovered new exit (range 8) 15841 | -8/Garrison | Garrison Relay disabled 16276 | -8/Garrison | Entered Materials 16396 | -8/Materials | Build established: Bothacker-Mutant 16568 | -8/Materials | Discovered new exit (range 13) 16594 | -8/Materials | Entered Factory 16594 | -7/Factory | Evolved 2 slots: Propulsion x1, Utility x1 16969 | -7/Factory | Assembled infested ambush trap array 17030 | -7/Factory | Destroyed 8 combat bots 17176 | -7/Factory | Garrison activated, responded to threat 17227 | -7/Factory | Build established: Scavenger-Mutant 18553 | -7/Factory | Build established: Mutant 19082 | -7/Factory | Repaired Sub. Beam Cannon 19237 | -7/Factory | Discovered new exit (range 15) 19670 | -7/Factory | Garrison activated, responded to threat 19780 | -7/Factory | Discovered new exit (range 13) 19794 | -7/Factory | First assault squad dispatched 20191 | -7/Factory | Identified exit to Garrison 20191 | -7/Factory | Entered Garrison 20221 | -7/Garrison | Triggered checkpoint 20246 | -7/Garrison | Expanded RIF knowledge: Robot Detection 20267 | -7/Garrison | Garrison Relay disabled 20330 | -7/Garrison | Core integrity fell below 50% 20574 | -7/Garrison | Build established: Bothacker-Mutant 20664 | -7/Garrison | Discovered new exit (range 12) 20735 | -7/Garrison | Lost 3 parts (3n) 20773 | -7/Garrison | Rescued a captive Derelict 20856 | -7/Garrison | Garrison Relay disabled 20923 | -7/Garrison | Triggered checkpoint 20979 | -7/Garrison | Triggered checkpoint 21090 | -7/Garrison | Discovered new exit (range 10) 21272 | -7/Garrison | Garrison Relay disabled 21497 | -7/Garrison | Triggered checkpoint 21561 | -7/Garrison | Discovered new exit (range 13) 22222 | -7/Garrison | Found Heavy Servo Lattice 22288 | -7/Garrison | Entered Factory 22779 | -7/Factory | Identified exit to Storage 22779 | -7/Factory | Identified exit to Lower Caves 22823 | -7/Factory | Identified exit to Garrison 22823 | -7/Factory | Entered Garrison 22899 | -7/Garrison | Expanded RIF knowledge: Autooverride 23068 | -7/Garrison | Triggered checkpoint 23095 | -7/Garrison | Garrison Relay disabled 23209 | -7/Garrison | Triggered checkpoint 23211 | -7/Garrison | Build established: Botlord-Mutant 23215 | -7/Garrison | Triggered checkpoint 23217 | -7/Garrison | Triggered checkpoint 23218 | -7/Garrison | Core integrity fell below 20% 23240 | -7/Garrison | Triggered checkpoint 23253 | -7/Garrison | Destroyed 7 combat bots 23258 | -7/Garrison | Lost 3 parts (2u1w) 23276 | -7/Garrison | Lost 3 allies 23403 | -7/Garrison | Discovered new exit (range 9) 23446 | -7/Garrison | Garrison Relay disabled 23453 | -7/Garrison | Garrison Relay disabled 23489 | -7/Garrison | Triggered checkpoint 23697 | -7/Garrison | Triggered checkpoint 23745 | -7/Garrison | Lost 3 allies 23749 | -7/Garrison | Garrison Relay disabled 23834 | -7/Garrison | Discovered new exit (range 10) 23875 | -7/Garrison | Triggered checkpoint 23953 | -7/Garrison | Expanded RIF knowledge: Structural Interface 24085 | -7/Garrison | Triggered checkpoint 24186 | -7/Garrison | Discovered new exit (range 10) 24294 | -7/Garrison | Entered Factory 24294 | -6/Factory | Accompanied by 1 ally 24294 | -6/Factory | Evolved 2 slots: Utility x2 24560 | -6/Factory | Identified exit to Garrison 24560 | -6/Factory | Entered Garrison 24560 | -6/Garrison | Accompanied by 1 ally 24570 | -6/Garrison | Phase Generator disabled 24584 | -6/Garrison | Triggered checkpoint 24595 | -6/Garrison | Met a derelict Sapper fleeing the area 24687 | -6/Garrison | Lost 8 parts (1p2n2u3w) 24740 | -6/Garrison | Triggered checkpoint 24754 | -6/Garrison | System corruption reached 10% 24967 | -6/Garrison | Garrison Relay disabled 25242 | -6/Garrison | Triggered checkpoint 25358 | -6/Garrison | Expanded RIF knowledge: Autooverride 25409 | -6/Garrison | Discovered new exit (range 9) 25448 | -6/Garrison | Rescued a captive Derelict 25458 | -6/Garrison | Triggered checkpoint 25509 | -6/Garrison | Garrison Relay disabled 25706 | -6/Garrison | Discovered new exit (range 54) 25706 | -6/Garrison | Discovered new exit (range 32) 25706 | -6/Garrison | Discovered new exit (range 54) 25871 | -6/Garrison | Spotted B-75 Beast 25962 | -6/Garrison | Garrison Relay disabled 26039 | -6/Garrison | Hijacked Beast 5a control node with streamctrl_high 26142 | -6/Garrison | Found Unknown Hackware 26147 | -6/Garrison | System corruption reached 30% 26153 | -6/Garrison | Found Unknown Hackware 26157 | -6/Garrison | Found Unknown Hackware 26161 | -6/Garrison | Found Unknown Hackware 26429 | -6/Garrison | Garrison Relay disabled 26589 | -6/Garrison | Entered Factory 27409 | -6/Factory | Core integrity fell below 50% 27437 | -6/Factory | Lost 6 parts (1p3n1u1w) 27934 | -6/Factory | Cargo convoy interrupted 27945 | -6/Factory | Core integrity fell below 20% 27973 | -6/Factory | Destroyed by P-60 Hacker with Shock Rifle Last Messages --------------- 27946_ P-60 Hacker resets U-05 Engineer, system corruption cleaned. 27946_ I-36 Angel distress signal jammed. 27947_ W-25 Informer distress signal jammed. 27947_ U-05 Engineer lays Concrete. 27947_ W-25 Informer distress signal jammed. 27947_ A-27 Freighter distress signal jammed. 27947_ I-36 Angel distress signal jammed. 27948_ W-25 Informer distress signal jammed. 27950_ Slug penetrates Fabricator. 27956_ Slammed into U-05 Engineer. 27957_ System corrupted: Substantial component data lost. 27957_ Slammed into U-05 Engineer. 27959_ Relay Coupler [Duelist] destroyed. 27959_ System corrupted by crushing effect (+2). 27959_ Enh. Optical Array broken. 27959_ Destabilizing: Short circuit. 27973_ RLB>9K01UFKQ,YCZOLUQ Map ----- +----------------------------------------------------+ | ????????????????????????????????????????????????? | | ????????????????????????????????????????????????? | | ????????????????????????????????????????????????? | | ????????????????????????????????????????????????? | | ?????????????????????????????????????????????##?? | | ?????????????????????????????????????????????# ? | | ???????????????????????????????????????????#?#T # | | ???????????????????????????????????????????# ?# | | ????????????????????????????????????????????# # | | ????????????????????????????????????????????# | | ???????????????? ???????????????????????????# # | | ??????????????? ????????????????????????????# | | ??????????????? ???????????????????????????### | | ???????????????? ??????????????????#########?? | | ????????????????? ?????????????????## ##? | | ????????????????? ????????????????# ## | | ?????????????????? ##############?# # | | ???????????????????? # #?# ######### | | ????????????????????? + """""" ### # | | ??????????????????????# pp"""""" ## # | | ??????????????????????# """""" #?# # h | | ????????????????????s?# """""" ###### "" | | ??????????????????????# !/ / "" | | ?????????????????????s# """""" ###### "" | | ??????????????????????# """""" #?# # " "" | | ??????????????????????# @ """""" #?#### """" "" | | ?????????????????????s# """""" #????# """" "" | | ??????????????????????# #????# | | ??????????????????????+ ! #????#/ | | ??????????????????????##############????# | | ????????????????????????????????????????######### | | ????????????????????????????????????????????????? | | ????????????????????????????????????????????????? | | ????????????????????????????????????????????????? | | ????????????????????????????????????????????????? | | ????????????????????????????????????????????????? | | ????????????????????????????????????????????????? | | ????????????????????????????????????????????????? | | ????????????????????????????????????????????????? | | ????????????????????????????????????????????????? | | ???????????????????????????????????????????????? | | ??????????????????????????????????????????????? | | ??????????????????????????????????????????????# | | ??????????????????????????????????????????????# | | ??????????????????????????????????????????????#= | | ??????????????????????????????????????????????# | | ??????????????????????????????????????????????# | | ??????????????????????????????????????????????# | | ??????????????????????????????????????????????#!! | | ??????????????????????????????????????????????#!! | +----------------------------------------------------+ Best States ------------- Heat Dissipation 84 Coolant Potential 65 Energy Generation 25 Energy Capacity 310 Matter Stores 300 Matter Capacity 300 Sight Range 22 Terrain Scan Density 10 Armor Coverage 800 Resistance: KI 10 Resistance: TH 30 Core Shielding 20 Utility Shielding 66 Weapon Cycling 20 Melee Speed Boost 20 Evasion (%) 55 Targeting Accuracy 8 Melee Accuracy 5 Recoil Reduction 4 Offensive Hacking 10 Relay Coupler Types 6 Relay Coupler Value 191 Item Schematics ----------------- Sub. Shrapnel Launcher | -8/Materials | Scanalyzed Lrn. Tractor Beam | -8/Materials | Scanalyzed Robot Schematics ------------------ None Fabricated ------------ Nothing Alien Tech Used ----------------- None Achievements -------------- None Challenges ------------ None Game ------ Seed ShadingBlastThermoblaster Manual? 0 Play Time 02:16:50 Cumulative 781.4 hours Start 2024.05.11 @ 11:17:13 End 2024.05.11 @ 13:40:39 Sessions 1 Manual Loads 0 Difficulty Rogue Special Mode None Game No. 501 Rogue 494 Adventurer 0 Explorer 7 Win Type - Total 55 Types 20/5/19/2/0/1/6/1/1 Lore% 89 Gallery% 96 Achievement% 84 Wizard Run 0 Options --------- Layout 2 ASCII 0 Keyboard 0 Movement Numpad Keybinds 0 Fullscreen 1 Font 24/Tamsyn Map View 50x44 Zoom Use 0% Tactical HUD 1 Map Filters NONE Filters NONE Steam 1 RUN: 135ffd08-1ccf-418d-b51e-86b83c725fb3